Cogmind - Beta 15 @@@ ROGUE MODE // 2025.07.04 @ 21:40:16 Player: the Result: Destroyed by H-77 Assassin with High-powered Shotgun Performance ------------- Evolutions (7) 3500 Regions Visited (20) 4000 Robots Destroyed (224) 1120 Value Destroyed (10312) 10312 Prototype IDs (41) 820 Alien Tech Used (2) 400 Bonus (5958) 5958 TOTAL SCORE: 26110 Bonus ------- Triggered High Security 500 High Alert Combat Kills 2056 Follower Combat Kills 2356 Met Zhirov 300 Built Enhanced Grunts 300 A7 Reached Mainframe 300 Met R17 at Cetus 500 Scanned by Researcher 500 Friendly Fire -854 Cogmind --------- Core Integrity 0/1300 Matter 300/300 Energy 100/100 System Corruption 19% Temperature Cool (0) Movement Core (50) Location -3/Testing Parts ------- > --- POWER (2) -------- (None) > --- PROPULSION (6) --- (None) > --- UTILITY (10) ----- (None) > --- WEAPON (3) ------- (None) > --- INVENTORY (5) ---- Advanced Cryofiber Web Advanced Cryofiber Web Peak State ------------ > --- POWER ------------ Fusion-Antimatter Reactor > --- PROPULSION ------- Myomer-Biometal Exoskeleton > --- UTILITY ---------- Armored Scrap Engine Experimental Power Amplifier Advanced Thermal Generator Advanced Cryofiber Web Advanced Heat Sink Advanced Heat Sink Large Storage Unit Seismic Detector Centrium Medium Armor Plating > --- WEAPON ----------- Hpw. EM Phase Construct/G > --- INVENTORY -------- Quantum Reactor Advanced Cryofiber Web Advanced Cooling System Coolant Network Quantum Capacitor Improved Transmission Jammer Layered Heavy Armor Plating Transdimensional Reconstructor Variable Charge Gun Variable Charge Gun Dispersion Rifle Linear Accelerator [Rating: 137] Favorites ----------- Power Constructs Engine Improved Ion Engine Power Core Fission Core Reactor Constructs Propulsion Light Treads Treads Light Treads Leg Constructs Wheel Wheel Hover Unit Cooled Aerolev Unit Utility Large Storage Unit Device Seismic Detector Storage Large Storage Unit Processor Advanced Targeting Computer Hackware System Mapper Protection Centrium Medium Armor Plating Weapon Constructs Energy Gun Constructs Energy Cannon Advanced Beam Cannon Ballistic Gun Assault Rifle Ballistic Cannon Mini Assault Cannon Launcher Missile Launcher Build | -11 -10 -10 -8 -8 -8 -6 -6 -6 -6 -6 -6 -6 -5 -5 -5 -5 -4 -4 -3 -3 ------- Run | Yrd Mat Sub Mat Sto Rec Fac Was Fac Ext Cet Arc Hub Fac Upp Upp Zhi Pro Fac Res Tes Slots Evolved 14 | . . . 4 . . 4 . . . . . . 2 . . . . 2 2 . Power 1 | . . . . . . . . . . . . . 1 . . . . . . . Propulsion 4 | . . . 1 . . 1 . . . . . . . . . . . . 2 . Utility 8 | . . . 2 . . 3 . . . . . . 1 . . . . 2 . . Weapon 1 | . . . 1 . . . . . . . . . . . . . . . . . Parts Attached 131 | 8 9 5 7 40 2 7 2 4 2 1 . . 10 . 1 2 . 8 14 9 Power 10 | 1 . 1 . 4 1 . . . . . . . 1 . . . . . 1 1 Engine 7 | 1 . 1 . 4 1 . . . . . . . . . . . . . . . Core 1 | . . . . . . . . . . . . . 1 . . . . . . . Reactor 2 | . . . . . . . . . . . . . . . . . . . 1 1 Propulsion 23 | 3 2 1 2 14 . 1 . . . . . . . . . . . . . . Treads 19 | . 2 1 2 13 . 1 . . . . . . . . . . . . . . Leg . | . . . . . . . . . . . . . . . . . . . . . Wheel 3 | 3 . . . . . . . . . . . . . . . . . . . . Hover 1 | . . . . 1 . . . . . . . . . . . . . . . . Flight . | . . . . . . . . . . . . . . . . . . . . . Utility 72 | 2 3 1 3 12 1 6 2 4 2 1 . . 9 . 1 2 . 8 10 5 Device 54 | 1 . . 2 10 1 5 2 4 2 . . . 6 . . . . 7 10 4 Storage 6 | 1 2 . 1 . . . . . . . . . 1 . . 1 . . . . Processor 4 | . . . . 1 . 1 . . . . . . 1 . 1 . . . . . Hackware 1 | . . . . . . . . . . . . . . . . . . . . 1 Protection 7 | . 1 1 . 1 . . . . . 1 . . 1 . . 1 . 1 . . Artifact . | . . . . . . . . . . . . . . . . . . . . . Weapon 26 | 2 4 2 2 10 . . . . . . . . . . . . . . 3 3 Energy Gun 13 | 1 2 2 1 4 . . . . . . . . . . . . . . 3 . Energy Cannon 8 | . . . 1 4 . . . . . . . . . . . . . . . 3 Ballistic Gun 3 | 1 2 . . . . . . . . . . . . . . . . . . . Ballistic Cannon 1 | . . . . 1 . . . . . . . . . . . . . . . . Launcher 1 | . . . . 1 . . . . . . . . . . . . . . . . Special Weapon . | . . . . . . . . . . . . . . . . . . . . . Impact Weapon . | . . . . . . . . . . . . . . . . . . . . . Slashing Weapon . | . . . . . . . . . . . . . . . . . . . . . Piercing Weapon . | . . . . . . . . . . . . . . . . . . . . . Special Melee Weapon . | . . . . . . . . . . . . . . . . . . . . . Unidentified Prototypes 17 | . . . . 4 1 . . . . 1 . . . . . 3 . . 3 5 Parts Lost 36 | . . 1 . 3 . . . . . 1 . . . . . . . 2 7 22 Power 7 | . . . . 1 . . . . . 1 . . . . . . . . 2 3 Propulsion 6 | . . . . 2 . . . . . . . . . . . . . . . 4 Utility 14 | . . . . . . . . . . . . . . . . . . 2 1 11 Weapon 9 | . . 1 . . . . . . . . . . . . . . . . 4 4 Highest Loss Streak 11 | . . 1 . 3 . . . . . 1 . . . . . . . 1 4 11 To Critical Strikes 2 | . . . . . . . . . . 1 . . . . . . . . . 1 Average Backups 13 | 3 10 15 13 14 14 12 12 14 14 14 14 15 14 13 13 12 13 12 11 9 Power 2 | . 1 1 1 1 . 4 5 4 4 3 4 4 2 2 2 2 2 2 1 . Propulsion 1 | 2 2 3 3 2 2 . . . . . . . . . . . . . . . Utility 7 | . 3 6 5 4 6 6 7 9 10 10 10 11 9 11 11 10 10 9 8 7 Weapon 2 | . 3 5 4 6 5 1 . . . . . . 2 . . . . . . . Tool/Special . | . . . . . . . . . . . . . . . . . . . . . Unused Backups 58 | . 4 . 2 9 4 1 2 1 1 4 . . 12 . . . . 1 14 3 Power 7 | . . . . 2 . . . . . 4 . . 1 . . . . . . . Propulsion 5 | . 3 . . 1 1 . . . . . . . . . . . . . . . Utility 22 | . . . 1 2 . . 2 1 1 . . . 6 . . . . 1 5 3 Weapon 24 | . 1 . 1 4 3 1 . . . . . . 5 . . . . . 9 . Tool/Special . | . . . . . . . . . . . . . . . . . . . . . Average Slot Usage (%) 72 | . 100 99 93 99 84 69 60 60 59 52 53 53 56 58 58 58 58 61 54 50 Engine 4 | . 14 14 9 8 8 5 2 . . . . . 1 . . . . . . . Core 1 | . . . . . . . . . . . . . 4 5 5 5 5 5 1 2 Reactor 1 | . . . . . . . 3 6 6 5 6 6 . . . . . . 2 2 Treads 12 | . 27 28 22 26 26 15 3 . . . . . 1 5 5 5 5 4 1 . Hover 1 | . . . . . . . 2 6 6 6 6 6 2 . . . . . 1 . Device 25 | . 13 12 26 23 12 30 33 33 32 23 20 25 31 35 35 34 35 35 32 28 Storage 7 | . 14 14 9 9 9 6 6 6 6 6 6 6 5 5 5 5 5 5 4 3 Processor 1 | . . . . 2 9 1 . . . . . . . . . . . . . . Protection 1 | . . 1 . . . . . . . 3 6 . 1 . . . . 4 2 1 Energy Gun 4 | . 17 27 17 8 . . . . . . . . . . . . . . . . Energy Cannon 7 | . . . 8 16 17 6 3 . 4 6 6 6 5 5 5 5 5 3 2 4 Peak Build Rating 137 | 7 8 10 15 29 42 61 75 75 87 97 97 97 109 114 113 116 110 130 137 123 Average Rating 66 | 6 7 9 13 24 33 51 65 74 77 92 97 88 102 109 109 109 110 126 121 102 On Entrance 69 | . 7 8 10 15 24 41 58 75 75 87 97 97 90 109 109 108 110 110 128 100 Naked Turns 2 | . . . . . . . . . . . . . . . . . . . . 2 Heaviest Build 121 | 14 30 36 39 45 42 52 46 46 49 59 59 59 91 86 86 88 88 121 119 85 Greatest Support 152 | 26 40 40 60 60 60 75 73 73 73 73 73 73 152 152 152 152 152 152 151 151 Greatest Overweight (x) 2 | . . . . . . 2 . . . . . . 1 . . . . 1 1 1 Average Overweight (x) . | . . . . . . . . . . . . . . . . . . . . . Largest Inventory Capacity 15 | 8 15 15 15 15 15 15 15 15 15 15 15 15 15 15 15 15 15 15 15 15 Average Capacity 14 | 7 12 15 15 15 15 15 15 15 15 15 15 15 15 15 15 15 15 15 15 14 Most Carried 15 | 8 15 15 15 15 15 15 15 15 15 15 15 15 15 15 15 15 15 15 15 12 Average Carried 14 | 4 10 15 13 14 14 14 14 14 14 14 14 15 14 15 14 14 15 14 13 10 Final Capacity 15 | 8 15 15 15 15 15 15 15 15 15 15 15 15 15 15 15 15 15 15 15 5 Final Carried 15 | 8 15 15 15 15 12 15 15 15 15 14 15 15 15 15 14 15 15 12 12 2 Scrap Engine Consumption 207 | . . . . . 22 19 20 8 16 5 3 5 27 . . 5 . 20 48 9 Constructs Created 8 | . . . . . 2 1 . . . 1 . . . . . . . . 2 2 Constructs Modified 79 | . . . . . 5 8 5 1 3 . . . 23 . . 1 . 11 21 1 Class Distribution -------------------- 27% | Construct 17% | Mutant 14% | Commander-Construct 13% | Scavenger-Gunner 13% | Scavenger-Construct 8% | Scavenger-Mutant Dominant Class ---------------- Mutant | -10/Materials Scavenger-Mutant | -10/Subcaves Scavenger-Skirmisher | -8/Materials Scavenger-Gunner | -8/Storage Mutant | -8/Recycling Construct | -6/Factory Construct | -6/Waste Construct | -6/Factory Construct | -6/Extension Commander-Construct | -6/Cetus Commander-Construct | -6/Archives Commander-Construct | -6/Hub_04(d) Commander-Construct | -5/Factory Construct | -5/Upper Caves Construct | -5/Upper Caves Construct | -5/Zhirov Construct | -4/Proximity Caves Scavenger-Construct | -4/Factory Scavenger-Construct | -3/Research Scavenger-Mutant | -3/Testing Resources | -11 -10 -10 -8 -8 -8 -6 -6 -6 -6 -6 -6 -6 -5 -5 -5 -5 -4 -4 -3 -3 ----------- Run | Yrd Mat Sub Mat Sto Rec Fac Was Fac Ext Cet Arc Hub Fac Upp Upp Zhi Pro Fac Res Tes Matter Collected 3058 | 292 142 55 70 639 131 263 30 49 217 63 10 82 133 125 2 80 20 125 338 192 Remotely . | . . . . . . . . . . . . . . . . . . . . . Salvage Created 12144 | 113 297 239 414 1956 261 475 205 312 1647 324 . 379 772 303 110 339 73 1622 1740 563 Parts 558 | 12 19 17 11 118 12 23 3 13 69 10 . 23 38 11 9 2 . 78 60 30 Haulers Intercepted 12 | . 2 . . 6 . . . . . . . 2 1 . . . . . 1 . Recyclers Shooed 3 | 1 . . . 1 . . . . . . . . 1 . . . . . . . Parts Field Recycled . | . . . . . . . . . . . . . . . . . . . . . Retrieved Matter . | . . . . . . . . . . . . . . . . . . . . . Parts Self-Destructed 23 | . . 2 . . . . . . . . . . . 11 9 1 . . . . Prevented 4 | . . 4 . . . . . . . . . . . . . . . . . . Kills | -11 -10 -10 -8 -8 -8 -6 -6 -6 -6 -6 -6 -6 -5 -5 -5 -5 -4 -4 -3 -3 ------- Run | Yrd Mat Sub Mat Sto Rec Fac Was Fac Ext Cet Arc Hub Fac Upp Upp Zhi Pro Fac Res Tes Combat Hostiles Destroyed 169 | . 6 4 2 31 5 9 . 4 20 4 . 2 10 5 2 . . 30 27 8 Melee 1 | . . . . . . . . . 1 . . . . . . . . . . . Guns 24 | . 5 4 1 13 . . . . . . . . . . . . . . 1 . Cannons 127 | . . . 1 15 4 6 . 4 18 4 . 2 10 5 2 . . 30 19 7 AOE 8 | . 1 . . 3 . 3 . . 1 . . . . . . . . . . . Classes Destroyed 19 | 2 3 2 . 5 . 1 . 2 2 . . . 1 . . . . . 1 . Worker 2 | . . . . 2 . . . . . . . . . . . . . . . . Builder 8 | . . . . 1 1 . . 1 . . . . 1 . . . . 4 . . Tunneler 3 | 2 . . . . . . . . . . . . . . . . . 1 . . Hauler 12 | . 2 . . 6 . . . . . . . 2 1 . . . . . 1 . Recycler 11 | 1 . . 4 2 . 1 . . 2 . . . . . . . . . 1 . Operator 7 | . . . . 1 . . . 1 . . . 2 2 . . . . 1 . . Watcher 8 | . . . . 2 . . . . . 2 . 1 2 . . . . 1 . . Swarmer 37 | . 3 . . 7 . 3 . . . . . . 2 . . . . 13 9 . Saboteur 1 | . . . . . . . . . 1 . . . . . . . . . . . Grunt 50 | . 3 . 1 10 . . . 2 9 . . . 2 5 . . . 8 8 2 Brawler 3 | . . . . . . . . . 1 . . . . . . . . 1 1 . Duelist 3 | . . . . . . . . 1 . . . . . . . . . 1 1 . Sentry 32 | . . 1 1 13 1 2 . 1 8 . . 1 . . . . . 3 1 . Demolisher 1 | . . . . . . . . . . . . . . . . . . . 1 . Specialist 1 | . . . . . . . . . . . . . 1 . . . . . . . Hunter 10 | . . . . 1 . 3 . . . . . 1 1 . . . . . 2 2 Programmer 15 | . . . . . . 1 . . . . . . 3 . 2 . . 4 1 4 Cetus Guard 4 | . . . . . . . . . . 4 . . . . . . . . . . Striker 3 | . . . . . . . . . . . . . . . . . . . 3 . Subdweller 7 | . . 3 . . 4 . . . . . . . . . . . . . . . Packrat 1 | . . . . . . . . . . . . . . . . . 1 . . . Thug 1 | . . . . . . . . . 1 . . . . . . . . . . . Savage 1 | . . . . . . . . . 1 . . . . . . . . . . . Butcher 1 | . . . . . . . . . 1 . . . . . . . . . . . Martyr 2 | . . . . . . . . 1 1 . . . . . . . . . . . Guerrilla 1 | . . . . . . . . . . . . . 1 . . . . . . . Best Kill Streak 12 | 2 3 2 5 7 2 3 . 3 4 3 . 3 2 5 2 . . 12 12 4 Combat Bots Only 10 | . 3 2 1 4 2 3 . 3 4 2 . 1 2 5 2 . . 5 10 4 Max Kills in Single Turn 3 | 1 1 1 1 2 1 3 . 2 2 1 . 1 1 1 1 . 1 1 1 1 Gunslinging . | . . . . . . . . . . . . . . . . . . . . . Exploded 3 | . 1 . . 2 . 3 . . 1 . . . . . . . . . . . Melee 1 | . . . . . . . . . 1 . . . . . . . . . . . Uniques/NPCs Destroyed . | . . . . . . . . . . . . . . . . . . . . . Combat | -11 -10 -10 -8 -8 -8 -6 -6 -6 -6 -6 -6 -6 -5 -5 -5 -5 -4 -4 -3 -3 -------- Run | Yrd Mat Sub Mat Sto Rec Fac Was Fac Ext Cet Arc Hub Fac Upp Upp Zhi Pro Fac Res Tes Hostile Shots Fired 1292 | . 20 22 20 107 9 174 . 9 211 12 1 18 74 14 4 . . 159 181 257 Missed 422 | . 6 10 5 27 5 52 . 7 90 5 . 11 20 4 . . . 44 68 68 Hits 870 | . 14 12 15 80 4 122 . 2 121 7 1 7 54 10 4 . . 115 113 189 Melee 7 | . . . . . . . . . . . . . 1 . . . . 1 5 . Projectile 863 | . 14 12 15 80 4 122 . 2 121 7 1 7 53 10 4 . . 114 108 189 AOE 19 | . . . . . . . . 1 . . . . . . . . . 2 16 . Critical Strikes 31 | . 1 . . 2 . 2 . 1 . 1 . . 3 1 . . . 3 2 15 Part Disruptions 1 | . . . . . . . . . . . . . . . . . . . . 1 Damage Taken 15582 | . 125 234 221 1162 86 1273 . 167 962 156 24 82 1128 187 83 . . 2193 3275 4224 Core 1888 | . 8 33 44 128 . 131 . 21 48 . . 29 101 . . . . 88 369 888 Absorbed by Shields 114 | . . . . . . . . . 90 24 . . . . . . . . . . Regen/Repaired (Parts) 4468 | . . . . . 5 402 211 17 351 68 . . 948 . . 80 . 1063 1300 23 Core Remaining (%) 84 | 100 . 83 . . 68 . . . . . . 73 . . . . 89 92 . . Volleys Fired 721 | 12 15 19 18 78 16 35 2 16 77 24 5 16 65 11 6 7 18 106 114 61 Largest 3 | 2 2 2 3 3 3 1 1 1 1 1 1 1 1 1 1 1 1 1 2 3 Hottest 384 | 60 80 80 170 197 270 270 136 136 136 136 136 136 349 349 349 349 349 384 384 240 Shots Fired 989 | 24 30 30 38 212 44 35 2 16 77 24 5 16 65 11 6 7 17 106 118 106 Gun 222 | 24 30 30 20 89 . . . . . . . . . . . . . . 11 18 Cannon 765 | . . . 18 121 44 35 2 16 77 24 5 16 65 11 6 7 17 106 107 88 Launcher 2 | . . . . 2 . . . . . . . . . . . . . . . . Special . | . . . . . . . . . . . . . . . . . . . . . Kinetic 111 | 12 14 . . 8 1 . 2 16 28 . . . . . . . . 14 16 . Thermal 730 | . . . 38 202 43 32 . . 49 24 5 16 65 11 6 7 17 92 35 88 Explosive 2 | . . . . 2 . . . . . . . . . . . . . . . . Electromagnetic 146 | 12 16 30 . . . 3 . . . . . . . . . . . . 67 18 Robot Hit Streak 20 | 4 9 16 20 15 15 15 3 6 13 12 13 4 8 11 2 14 16 14 10 7 Robot Miss Streak 7 | 3 1 4 3 4 2 2 . 1 6 4 2 3 4 2 3 . 6 5 7 6 Penetration Max 1 | . . . . . . . . 1 . . . . . . . . . . . . Secondary Targets 2 | . 2 . . . . . . . . . . . . . . . . . . . Max Gunslinging Chain 1 | . 1 . . . . . . . . . . . . . . . . . . . Capacitor 132 | . . . . . . . . . 1 23 5 16 17 . . . . . 70 . Shots Hit Robots 580 | 10 20 23 24 131 31 20 2 8 55 18 5 13 33 9 3 6 1 57 63 48 Core Hits 300 | 5 11 9 11 63 9 9 1 6 31 18 1 8 21 6 2 5 1 39 29 15 Critical Kills 4 | . . . . 1 . . . . . . . . . . . . . . 2 1 Critical Parts Destroyed 4 | . . . . . . . . . 1 . . . . . . . . . 3 . Critical Strikes 20 | . . . 3 6 . . . . 1 . . . 2 . . . . . 7 1 Burn 11 | . . . 3 5 . . . . . . . . 2 . . . . . 1 . Meltdown 2 | . . . . 1 . . . . . . . . . . . . . . . 1 Destroy 6 | . . . . . . . . . 1 . . . . . . . . . 5 . Corrupt 1 | . . . . . . . . . . . . . . . . . . . 1 . Melee Attacks . | . . . . . . . . . . . . . . . . . . . . . Impact . | . . . . . . . . . . . . . . . . . . . . . Slashing . | . . . . . . . . . . . . . . . . . . . . . Piercing . | . . . . . . . . . . . . . . . . . . . . . Sneak Attacks . | . . . . . . . . . . . . . . . . . . . . . Combat Hostiles . | . . . . . . . . . . . . . . . . . . . . . Follow-up Attacks . | . . . . . . . . . . . . . . . . . . . . . Damage Inflicted 32187 | 108 300 274 390 2850 736 1514 149 725 4712 2055 374 850 2367 561 189 591 102 6915 3698 2727 Guns 2424 | 108 255 274 199 1188 . . . . . . . . . . . . . . 272 128 Cannons 28126 | . . . 191 1465 736 992 149 725 4319 1657 374 850 2367 561 189 591 102 6848 3426 2584 Explosions 1622 | . 45 . . 197 . 522 . . 393 398 . . . . . . . 67 . . Melee . | . . . . . . . . . . . . . . . . . . . . . Ramming 15 | . . . . . . . . . . . . . . . . . . . . 15 Kinetic 3360 | 55 65 . . . . . 149 725 1111 . . . . . . . . 875 380 . Thermal 26046 | . 45 . 390 2653 736 1514 . . 3601 2055 374 850 2367 561 189 591 102 5973 1461 2584 Explosive 197 | . . . . 197 . . . . . . . . . . . . . . . . Electromagnetic 2569 | 53 190 274 . . . . . . . . . . . . . . . 67 1857 128 Impact . | . . . . . . . . . . . . . . . . . . . . . Slashing . | . . . . . . . . . . . . . . . . . . . . . Piercing . | . . . . . . . . . . . . . . . . . . . . . Highest Corruption 19 | . . . . 1 1 . . . . . . 4 3 3 3 3 3 1 2 19 Average Corruption 1 | . . . . 1 1 . . . . . . 4 2 3 3 3 3 1 1 6 Corruption Purged . | . . . . . . . . . . . . . . . . . . . . . Corruption Blocked . | . . . . . . . . . . . . . . . . . . . . . Effects 86 | . . . . 12 14 . . . . . . 6 2 4 2 3 6 4 15 18 Message Errors 20 | . . . . 4 1 . . . . . . 1 . 2 . 2 2 2 2 4 Matter Fused 24 | . . . . 4 6 . . . . . . 1 1 1 . . 3 . 4 4 Heat Flow Errors 11 | . . . . 2 . . . . . . . 2 . 1 . . . 1 2 3 Energy Discharges 6 | . . . . . 2 . . . . . . . . . 1 1 . . 1 1 Parts Rejected 1 | . . . . . . . . . . . . 1 . . . . . . . . Parts Fused 2 | . . . . . . . . . . . . . 1 . . . . . 1 . Data Loss (minor) 11 | . . . . . 2 . . . . . . 1 . . 1 . . 1 3 3 Data Loss (major) 3 | . . . . 1 1 . . . . . . . . . . . . . 1 . Alerts 5 | . . . . 1 2 . . . . . . . . . . . . . 1 1 Weapon Failures 3 | . . . . . . . . . . . . . . . . . 1 . . 2 Overload Shots 19 | . . . . . . . . . . . . . . . . . . . . 19 Effects 2 | . . . . . . . . . . . . . . . . . . . . 2 Energy Bleed 1 | . . . . . . . . . . . . . . . . . . . . 1 Heat Surge 1 | . . . . . . . . . . . . . . . . . . . . 1 Overflow Damage 3191 | . . . . 55 . 163 . 61 196 17 . 90 222 . 8 8 26 1612 360 373 Projectiles 2999 | . . . . 12 . 17 . 61 196 14 . 90 222 . 8 8 26 1612 360 373 Explosions 192 | . . . . 43 . 146 . . . 3 . . . . . . . . . . Melee . | . . . . . . . . . . . . . . . . . . . . . Knockbacks 3 | . . . . . . . . 1 . . . . . . . . . 1 1 . Impact . | . . . . . . . . . . . . . . . . . . . . . Kinetic 3 | . . . . . . . . 1 . . . . . . . . . 1 1 . Secondary . | . . . . . . . . . . . . . . . . . . . . . Self-Inflicted Damage 265 | . . . . . . 156 . . 21 . . . 82 . . . . . . 6 Shots 5 | . . . . . . 3 . . 1 . . . 1 . . . . . . . Rammed 6 | . . . . . . . . . . . . . . . . . . . . 6 Targets Rammed 6 | . . . . . . . . . . . . . . . . . . . . 6 Kicked . | . . . . . . . . . . . . . . . . . . . . . Crushed . | . . . . . . . . . . . . . . . . . . . . . Highest Temperature 863 | 40 4 . 326 432 274 582 . 52 58 292 336 389 476 348 220 330 361 432 594 863 Average Temperature 146 | 24 2 . 115 111 111 195 . 28 11 117 156 123 145 126 100 171 136 134 235 309 Received Heat Transfer 2042 | . 15 51 108 576 6 180 . 21 274 . . 27 237 108 . . . 213 120 106 Effects 45 | . . . . 4 . 8 . . . 2 . 1 1 . . . 1 . 8 20 Shutdowns 5 | . . . . . . . . . . . . . 1 . . . . . . 4 Energy Bleed 5 | . . . . . . . . . . . . 1 . . . . . . 3 1 Interference 16 | . . . . 2 . 3 . . . 2 . . . . . . 1 . 2 6 Matter Decay 3 | . . . . . . 2 . . . . . . . . . . . . 1 . Short Circuit 5 | . . . . 1 . 3 . . . . . . . . . . . . . 1 Damage (minor) 4 | . . . . 1 . . . . . . . . . . . . . . 2 1 Damage (major) 6 | . . . . . . . . . . . . . . . . . . . . 6 Damage (core) 1 | . . . . . . . . . . . . . . . . . . . . 1 Siege Activations . | . . . . . . . . . . . . . . . . . . . . . Martial Activations . | . . . . . . . . . . . . . . . . . . . . . Shielding Activations . | . . . . . . . . . . . . . . . . . . . . . Robots Disrupted 2 | . . 1 . . . . . . . . . . . . . . . 1 . . Combat Hostiles 2 | . . 1 . . . . . . . . . . . . . . . 1 . . Robots Corrupted 9 | . . . . . . . . . . . . . . . . . . . 9 . Combat Hostiles 7 | . . . . . . . . . . . . . . . . . . . 7 . Parts Fried 10 | . . . . . . . . . 1 . . . . . . . . . 9 . Impact Corruptions . | . . . . . . . . . . . . . . . . . . . . . Robots Melted 3 | . . . . 1 1 . . . . . . . . . . . . . . 1 Combat Hostiles 2 | . . . . . 1 . . . . . . . . . . . . . . 1 Parts Melted 35 | . . . 3 12 3 . . . . . . . 3 2 . . . 3 4 5 Heat Transferred 16619 | . . . 1123 5624 1110 300 . . 476 450 . . 1704 407 111 370 74 1998 892 1980 Parts Sabotaged 1 | . . . . . . . . . . . . . . . . . . 1 . . Parts Stolen . | . . . . . . . . . . . . . . . . . . . . . Parts Stripped . | . . . . . . . . . . . . . . . . . . . . . Power Chain Reactions 6 | . 1 . . . . . . . 3 2 . . . . . . . . . . Alert | -11 -10 -10 -8 -8 -8 -6 -6 -6 -6 -6 -6 -6 -5 -5 -5 -5 -4 -4 -3 -3 ------- Run | Yrd Mat Sub Mat Sto Rec Fac Was Fac Ext Cet Arc Hub Fac Upp Upp Zhi Pro Fac Res Tes Maximum Alert Level 5 | . . . . 1 . . . 4 5 4 2 2 5 . . . . 3 2 1 Low Security (%) 49 | 100 100 . 100 77 100 100 100 6 . . . 15 3 . . . . 4 . 61 Level 1 13 | . . . . 22 . . . 22 . . 4 68 20 . . . . 27 21 38 Level 2 16 | . . . . . . . . 11 3 . 95 16 10 . . . . 61 78 . Level 3 11 | . . . . . . . . 15 59 92 . . 14 . . . . 6 . . Level 4 5 | . . . . . . . . 44 21 7 . . 18 . . . . . . . Level 5 3 | . . . . . . . . . 15 . . . 22 . . . . . . . High Security . | . . . . . . . . . . . . . 9 . . . . . . . Max Security . | . . . . . . . . . . . . . . . . . . . . . Peak Influence 1761 | 10 61 . 30 391 161 187 63 1488 1705 1128 558 416 1761 . . . . 787 595 290 Initial 937 | . . . . 10 141 . 63 . 695 937 395 139 189 . . . . 150 406 290 Average 384 | 1 8 . 11 119 12 22 12 918 1065 1044 478 267 1043 . . . . 438 467 171 Influence Increases 10887 | 15 185 20 92 1002 67 454 1 1628 1752 391 193 407 2298 110 50 15 . 1187 731 289 Destroy 0b10 Robot/C 4600 | . 120 20 40 620 20 180 . 500 680 160 80 100 640 100 40 . . 600 540 160 Destroy 0b10 Robot/NC 315 | 15 10 . 20 70 5 5 . 20 25 10 . 30 45 . . 15 . 35 10 . Destroy Leader 922 | . 24 . 10 216 . 60 . 90 64 . . 48 146 10 10 . . 112 92 40 Allied During Kill 2355 | . . . . . . . . 547 769 170 80 172 617 . . . . . . . Successful Hack 272 | . 30 . 7 21 40 . . 25 31 . . 27 57 . . . . 29 5 . Disable Machine 750 | . . . 15 30 . 135 . 90 60 15 30 15 150 . . . . 150 15 45 Anti-Garrison Action 450 | . . . . . . . . 150 . . . . 300 . . . . . . . Destroy Structure 923 | . 1 . . 30 2 74 1 206 93 36 3 15 268 . . . . 96 54 44 Advance Influence 150 | . . . . . . . . . . . . . . . . . . 150 . . Lose Combat Pursuer 150 | . . . . 15 . . . . 30 . . . 75 . . . . 15 15 . Influence Decreases 10878 | 15 185 20 67 665 429 273 182 208 1497 1078 783 419 923 753 313 870 . 412 989 797 Entered New Map 5183 | . . . . 15 221 . 118 . 725 738 593 259 197 653 213 855 . . 369 227 Time Decay 4535 | 15 185 20 67 460 208 273 64 188 482 270 170 140 486 100 100 15 . 392 550 350 Lost Part 350 | . . . . 30 . . . . . 10 . . . . . . . 20 70 220 Lost Ally 510 | . . . . 10 . . . 20 140 60 20 20 240 . . . . . . . Purge Threat 300 | . . . . 150 . . . . 150 . . . . . . . . . . . Squads Dispatched 58 | . . . 1 7 . 2 . 5 3 . . 1 17 . . . . 7 9 6 Investigation 8 | . . . . 2 . . . 1 1 . . . 2 . . . . . 2 . Extermination 8 | . . . . . . 2 . . . . . . 2 . . . . 2 . 2 Reinforcement 16 | . . . 1 2 . . . . 1 . . 1 2 . . . . 2 4 3 Assault 19 | . . . . . . . . 4 1 . . . 11 . . . . 3 . . Garrison 7 | . . . . 3 . . . . . . . . . . . . . . 3 1 Intercept . | . . . . . . . . . . . . . . . . . . . . . Searches Triggered . | . . . . . . . . . . . . . . . . . . . . . Construction Impeded 4 | . . . . 1 . . . . 1 . . . . . . . . 1 . 1 Haulers Reinforced 3 | . . . . . . . . . . . . . . . . . . . 2 1 Active Scanning Responses . | . . . . . . . . . . . . . . . . . . . . . Cargo Convoy Interrupts . | . . . . . . . . . . . . . . . . . . . . . Stealth | -11 -10 -10 -8 -8 -8 -6 -6 -6 -6 -6 -6 -6 -5 -5 -5 -5 -4 -4 -3 -3 --------- Run | Yrd Mat Sub Mat Sto Rec Fac Was Fac Ext Cet Arc Hub Fac Upp Upp Zhi Pro Fac Res Tes Distress Signals 18 | . . . 1 4 2 . . . 1 2 . 1 1 . . . . 1 4 1 Communications Jammed . | . . . . . . . . . . . . . . . . . . . . . Distress Signals . | . . . . . . . . . . . . . . . . . . . . . Times Spotted 269 | . 11 5 6 37 4 8 . 10 34 9 2 10 34 4 1 . 1 36 38 19 Peak Tracking Total 7 | . 3 2 5 5 2 3 . 5 5 5 2 5 5 4 1 . 1 5 6 7 Tactical Retreats 9 | . . . . 1 . . . . 2 . . . 4 . . . . 1 1 . Traps | -11 -10 -10 -8 -8 -8 -6 -6 -6 -6 -6 -6 -6 -5 -5 -5 -5 -4 -4 -3 -3 ------- Run | Yrd Mat Sub Mat Sto Rec Fac Was Fac Ext Cet Arc Hub Fac Upp Upp Zhi Pro Fac Res Tes Traps Triggered 10 | . . . . 3 . 1 . . 1 . . 1 3 . . . . . 1 . Indirectly . | . . . . . . . . . . . . . . . . . . . . . Trap Hack Attempts . | . . . . . . . . . . . . . . . . . . . . . Triggered . | . . . . . . . . . . . . . . . . . . . . . Disarmed . | . . . . . . . . . . . . . . . . . . . . . Reprogrammed . | . . . . . . . . . . . . . . . . . . . . . Reused . | . . . . . . . . . . . . . . . . . . . . . Traps Extracted . | . . . . . . . . . . . . . . . . . . . . . Installed . | . . . . . . . . . . . . . . . . . . . . . Triggered . | . . . . . . . . . . . . . . . . . . . . . Machines | -11 -10 -10 -8 -8 -8 -6 -6 -6 -6 -6 -6 -6 -5 -5 -5 -5 -4 -4 -3 -3 ---------- Run | Yrd Mat Sub Mat Sto Rec Fac Was Fac Ext Cet Arc Hub Fac Upp Upp Zhi Pro Fac Res Tes Machines Disabled 57 | . . . 1 2 . 9 . 7 7 1 2 1 12 . . 1 . 10 1 3 Max in Single Turn 8 | . . . 1 1 . 5 . . 1 1 1 1 5 . . 1 . 8 1 1 Garrison Access 4 | . . . . . . . . 1 . . . . 2 . . . . 1 . . Machines Repaired . | . . . . . . . . . . . . . . . . . . . . . Machines Dismantled . | . . . . . . . . . . . . . . . . . . . . . Machines Sabotaged . | . . . . . . . . . . . . . . . . . . . . . Overloaded Fab Kills . | . . . . . . . . . . . . . . . . . . . . . Hacking | -11 -10 -10 -8 -8 -8 -6 -6 -6 -6 -6 -6 -6 -5 -5 -5 -5 -4 -4 -3 -3 --------- Run | Yrd Mat Sub Mat Sto Rec Fac Was Fac Ext Cet Arc Hub Fac Upp Upp Zhi Pro Fac Res Tes Machines Accessed 87 | . 10 1 1 11 12 3 . 5 9 3 . 8 12 . . 5 . 2 4 1 Terminals 60 | . 8 . 1 11 6 2 . 3 9 3 . 7 6 . . . . 1 2 1 Fabricators 4 | . . . . . . 1 . 1 . . . . 1 . . . . . 1 . Repair Stations 2 | . . . . . . . . . . . . . 1 . . . . 1 . . Recycling Units 8 | . 2 . . . 5 . . 1 . . . . . . . . . . . . Scanalyzers 3 | . . . . . . . . . . . . . 3 . . . . . . . Garrison Access 3 | . . . . . . . . . . . . 1 1 . . . . . 1 . Total Hacks 202 | . 25 1 3 23 30 7 . 11 22 7 . 15 29 . . 18 . 5 5 1 Successful 97 | . 9 1 1 8 21 3 . 7 8 1 . 2 13 . . 18 . 3 2 . Failed 103 | . 15 . 2 15 8 4 . 4 14 6 . 13 16 . . . . 2 3 1 Catastrophic 23 | . 4 . . 1 2 1 . . 3 1 . 7 3 . . . . . . 1 Database Lockouts 2 | . 1 . . . 1 . . . . . . . . . . . . . . . Manual 41 | . 10 . 2 7 6 . . . . 1 4 2 7 . . . . 2 . . Terminals 139 | . 20 . 3 23 20 5 . 5 22 7 . 13 15 . . . . 2 3 1 Fabricators 10 | . . . . . . 2 . 4 . . . . 3 . . . . . 1 . Repair Stations 4 | . . . . . . . . . . . . . 1 . . . . 3 . . Recycling Units 15 | . 5 . . . 8 . . 2 . . . . . . . . . . . . Scanalyzers 8 | . . . . . . . . . . . . . 8 . . . . . . . Garrison Access 5 | . . . . . . . . . . . . 2 2 . . . . . 1 . Terminal Hacks 71 | . 7 1 1 8 14 2 . 3 8 1 . 2 5 . . 18 . . 1 . Record 8 | . . . . . 1 . . . . 1 . . . . . 6 . . . . Part Schematic 8 | . 1 . . 1 2 . . . . . . . . . . 4 . . . . Robot Schematic 1 | . . . . . . . . . 1 . . . . . . . . . . . Robot Analysis 10 | . 1 . . 1 2 1 . . . . . 1 . . . 4 . . . . Prototype ID Bank 11 | . . . . . 3 . . . 3 . . . 1 . . 4 . . . . Open Door 7 | . . 1 . 4 . . . . 2 . . . . . . . . . . . Open DSF 2 | . . . . . . . . 1 . . . . . . . . . . 1 . Branch Access Points 1 | . . . . . . . . . . . . . 1 . . . . . . . Emergency Access Points 1 | . 1 . . . . . . . . . . . . . . . . . . . Alert Level 3 | . . . . . 1 . . 1 1 . . . . . . . . . . . Unreport Threat 2 | . . . . 1 . . . . 1 . . . . . . . . . . . Locate Traps 2 | . 2 . . . . . . . . . . . . . . . . . . . Security Status 1 | . . . . . 1 . . . . . . . . . . . . . . . Extermination Status 1 | . . . . . 1 . . . . . . . . . . . . . . . Hauler Manifests 3 | . 1 . . . . . . . . . . 1 1 . . . . . . . Registered Components 4 | . . . 1 . . 1 . 1 . . . . 1 . . . . . . . Zone Layout 4 | . 1 . . 1 1 . . . . . . . 1 . . . . . . . Release Object 2 | . . . . . 2 . . . . . . . . . . . . . . . Fabricator Hacks 7 | . . . . . . 1 . 3 . . . . 2 . . . . . 1 . Network Status 2 | . . . . . . . . 1 . . . . 1 . . . . . . . Load Schematic 3 | . . . . . . . . 1 . . . . 1 . . . . . 1 . Build 2 | . . . . . . 1 . 1 . . . . . . . . . . . . Repair Station Hacks 2 | . . . . . . . . . . . . . . . . . . 2 . . Scan Component 1 | . . . . . . . . . . . . . . . . . . 1 . . Repair 1 | . . . . . . . . . . . . . . . . . . 1 . . Recycling Unit Hacks 7 | . 2 . . . 4 . . 1 . . . . . . . . . . . . Retrieve Components 7 | . 2 . . . 4 . . 1 . . . . . . . . . . . . Scanalyzer 3 | . . . . . . . . . . . . . 3 . . . . . . . Insert Component 2 | . . . . . . . . . . . . . 2 . . . . . . . Analyze 1 | . . . . . . . . . . . . . 1 . . . . . . . Garrison Access Hacks . | . . . . . . . . . . . . . . . . . . . . . Unauthorized Hacks 7 | . . . . . 3 . . . . . . . 3 . . . . 1 . . Terminals 6 | . . . . . 2 . . . . . . . 3 . . . . 1 . . Botnet 6 | . . . . . 2 . . . . . . . 3 . . . . 1 . . Fabricators . | . . . . . . . . . . . . . . . . . . . . . Repair Stations . | . . . . . . . . . . . . . . . . . . . . . Recycling Units 1 | . . . . . 1 . . . . . . . . . . . . . . . Mask 1 | . . . . . 1 . . . . . . . . . . . . . . . Scanalyzers . | . . . . . . . . . . . . . . . . . . . . . Garrison Access . | . . . . . . . . . . . . . . . . . . . . . Data Cores Recovered 6 | . . . . . . . . . 1 . . 2 2 . . . . 1 . . Used 1 | . . . . . . . . . . . . 1 . . . . . . . . Hacking Detections 68 | . 8 . 1 8 8 2 . 4 9 3 . 8 11 . . . . 2 3 1 Full Trace Events 7 | . 1 . . 2 . . . 1 1 . . . 2 . . . . . . . Feedback Events 1 | . . . . . . . . . . . . . 1 . . . . . . . Corruption 1 | . . . . . . . . . . . . . 1 . . . . . . . Feedback Blocked . | . . . . . . . . . . . . . . . . . . . . . Robot Schematics Acquired 1 | . . . . . . . . . 1 . . . . . . . . . . . Robots Built . | . . . . . . . . . . . . . . . . . . . . . Authchips . | . . . . . . . . . . . . . . . . . . . . . Time . | . . . . . . . . . . . . . . . . . . . . . Total Robot Build Rating . | . . . . . . . . . . . . . . . . . . . . . Part Schematics Acquired 9 | . 1 . . 1 2 . . . . . . . 1 . . 4 . . . . Parts Built 4 | . . . . . . 2 . 2 . . . . . . . . . . . . Authchips . | . . . . . . . . . . . . . . . . . . . . . Time 212 | . . . . . . 117 . 95 . . . . . . . . . . . . Total Part Build Rating 24 | . . . . . . 14 . 10 . . . . . . . . . . . . Parts Repaired 1 | . . . . . . . . . . . . . . . . . . 1 . . Time 31 | . . . . . . . . . . . . . . . . . . 31 . . Parts Recycled . | . . . . . . . . . . . . . . . . . . . . . Recycled Matter . | . . . . . . . . . . . . . . . . . . . . . Retrieved Matter . | . . . . . . . . . . . . . . . . . . . . . Retrieved Components 27 | . 11 . . . 16 . . . . . . . . . . . . . . . Parts Scanalyzed 2 | . . . . . . . . . . . . . 2 . . . . . . . Part Schematics Acquired 1 | . . . . . . . . . . . . . 1 . . . . . . . Parts Damaged . | . . . . . . . . . . . . . . . . . . . . . Bothacking | -11 -10 -10 -8 -8 -8 -6 -6 -6 -6 -6 -6 -6 -5 -5 -5 -5 -4 -4 -3 -3 ------------ Run | Yrd Mat Sub Mat Sto Rec Fac Was Fac Ext Cet Arc Hub Fac Upp Upp Zhi Pro Fac Res Tes Used RIF Installer . | . . . . . . . . . . . . . . . . . . . . . Robots Hacked . | . . . . . . . . . . . . . . . . . . . . . Non-combat . | . . . . . . . . . . . . . . . . . . . . . Combat . | . . . . . . . . . . . . . . . . . . . . . Robot Hacks Applied . | . . . . . . . . . . . . . . . . . . . . . Relay Couplers Released 7 | . . . . . . . . 1 . . . . 3 . . . . 3 . . Machine Destruction 7 | . . . . . . . . 1 . . . . 3 . . . . 3 . . Fabnet Peak Effective % . | . . . . . . . . . . . . . . . . . . . . . Robots Rewired 16 | . . . . . . . . . 16 . . . . . . . . . . . Allies Hacked 1 | . . . . . . . . . . . . . 1 . . . . . . . Hacks Repelled . | . . . . . . . . . . . . . . . . . . . . . Allies | -11 -10 -10 -8 -8 -8 -6 -6 -6 -6 -6 -6 -6 -5 -5 -5 -5 -4 -4 -3 -3 -------- Run | Yrd Mat Sub Mat Sto Rec Fac Was Fac Ext Cet Arc Hub Fac Upp Upp Zhi Pro Fac Res Tes Total Allies 50 | . . . . . . . 20 . 25 5 . . . . . . . . . . Largest Group 28 | . . . . . . . 20 20 25 28 23 19 15 . . . . . . . Highest-Rated Group 1372 | . . . . . . . 749 749 981 1372 1140 878 748 . . . . . . . Highest-Rated Ally 159 | . . . . . . . 50 50 159 159 159 96 96 . . . . . . . Total Orders 6 | . . . . 5 . . . . . 1 . . . . . . . . . . STAY 1 | . . . . . . . . . . 1 . . . . . . . . . . EXPLORE 4 | . . . . 4 . . . . . . . . . . . . . . . . RETURN 1 | . . . . 1 . . . . . . . . . . . . . . . . Ally Attacks 423 | . . . . . . . . 73 147 35 19 16 133 . . . . . . . Total Damage 13850 | . . . . . . . . 4105 4184 808 437 363 3953 . . . . . . . Kills 80 | . . . . . . . . 23 18 4 4 5 26 . . . . . . . Allies Corrupted 6 | . . . . . . . . . 2 . . 4 . . . . . . . . Allies Melted 3 | . . . . . . . . . 1 . . . 2 . . . . . . . Intel | -11 -10 -10 -8 -8 -8 -6 -6 -6 -6 -6 -6 -6 -5 -5 -5 -5 -4 -4 -3 -3 ------- Run | Yrd Mat Sub Mat Sto Rec Fac Was Fac Ext Cet Arc Hub Fac Upp Upp Zhi Pro Fac Res Tes Active Infowar (turns) 13398 | 55 1217 891 185 1763 832 961 380 410 1108 . . 265 1411 214 208 144 210 931 1537 676 Structural 8048 | . . . 181 464 . 891 380 410 1108 . . 172 1035 204 208 144 210 768 1199 674 Seismic 13039 | 55 1217 891 185 1574 832 858 380 410 1108 . . 264 1410 214 206 131 210 902 1537 655 Jamming 100 | . . . . . . . . . . . . . . . . . . . . 100 ECM 2 | . . . . . . . . . . . . . . . . . . . . 2 Robot Analysis Total 10 | . 1 . . 1 2 1 . . . . . 1 . . . 4 . . . . Derelict Logs Recovered 3 | . . 1 . . . . . . . . . . . . 2 . . . . . Drone Launches 4 | . . . . 4 . . . . . . . . . . . . . . . . Drone Recoveries 3 | . . . . 3 . . . . . . . . . . . . . . . . Exploration | -11 -10 -10 -8 -8 -8 -6 -6 -6 -6 -6 -6 -6 -5 -5 -5 -5 -4 -4 -3 -3 ------------- Run | Yrd Mat Sub Mat Sto Rec Fac Was Fac Ext Cet Arc Hub Fac Upp Upp Zhi Pro Fac Res Tes Turns Passed 16376 | 97 1242 983 185 1824 2307 963 380 410 1257 598 345 281 1411 214 208 144 210 931 1587 799 Spaces Moved 9941 | 53 714 568 76 765 979 448 271 383 716 261 261 286 1520 345 351 181 294 448 736 285 Core 6 | 4 . . . . . . . . . . . . . . . . . . . 2 Treads 6039 | . 698 568 76 765 979 384 104 . . . . . 622 345 351 181 294 426 246 . Legs 784 | . . . . . . 51 . . . . . . 319 . . . . . 131 283 Wheels 65 | 49 16 . . . . . . . . . . . . . . . . . . . Hover 2994 | . . . . . . 13 167 383 716 261 261 286 526 . . . . 22 359 . Flight 53 | . . . . . . . . . . . . . 53 . . . . . . . Fastest Speed 50 | 50 80 160 160 160 146 125 60 60 60 60 60 60 53 53 53 53 53 53 149 50 Average Speed 112 | 81 158 160 160 160 153 175 91 60 60 60 60 60 67 53 53 53 53 143 173 183 Slowest Speed 235 | 90 160 160 160 160 160 227 125 60 60 60 60 60 107 53 53 53 53 235 196 184 Overloaded Moves . | . . . . . . . . . . . . . . . . . . . . . Propulsion Burnouts . | . . . . . . . . . . . . . . . . . . . . . Robots Hopped . | . . . . . . . . . . . . . . . . . . . . . Potential Cave-ins 7 | . . . . 1 . . . . . . . . . . . . 5 . . 1 Cave-ins Triggered 1 | . . . . . . . . . . . . . . . . . . . . 1 Teleports 1 | . . . . . . . . . . . . . . . . . . . . 1 Exploration Rate (%) 52 | 4 96 35 6 92 98 12 95 12 85 80 95 40 54 51 52 61 55 13 25 40 Regions Visited 20 Branch Regions 12 Pre-discovered Areas 3 | . . . . . . . . . . . . . . . . 3 . . . . Known Exits Taken 4 | . . . 1 . . . . . . . . . 1 . 1 . 1 . . . Unknown Exits Taken 14 | 1 1 1 . 1 1 . . 1 1 1 1 1 . 1 . 1 . 1 1 . Scrap Searched 7 | . . 1 . . . . . . . . . . . 1 1 . 4 . . . Spaces Dug 127 | . . . . 4 1 1 . 9 4 . . . 56 2 3 2 8 10 19 8 Terrain Destroyed 463 | . 1 . . 33 1 78 1 15 59 27 1 12 82 10 8 2 32 46 27 28 Melee . | . . . . . . . . . . . . . . . . . . . . . Projectile 315 | . . . . 4 1 9 1 15 49 8 1 12 62 10 8 2 32 46 27 28 AOE 148 | . 1 . . 29 . 69 . . 10 19 . . 20 . . . . . . . Terrain Rammed . | . . . . . . . . . . . . . . . . . . . . . Walls Destroyed . | . . . . . . . . . . . . . . . . . . . . . Machines Disabled . | . . . . . . . . . . . . . . . . . . . . . Actions | -11 -10 -10 -8 -8 -8 -6 -6 -6 -6 -6 -6 -6 -5 -5 -5 -5 -4 -4 -3 -3 --------- Run | Yrd Mat Sub Mat Sto Rec Fac Was Fac Ext Cet Arc Hub Fac Upp Upp Zhi Pro Fac Res Tes Total 14402 | 81 804 611 109 1218 1751 591 405 550 1468 704 449 393 1861 363 366 220 329 631 1008 490 Wait 3051 | . 33 15 1 247 735 79 121 137 506 405 181 85 211 6 7 23 18 53 74 114 Move 9921 | 52 713 567 75 764 978 448 270 382 715 260 260 285 1519 344 350 180 293 447 735 284 Hop . | . . . . . . . . . . . . . . . . . . . . . Pick Up 122 | 8 18 . 4 22 3 8 4 3 2 6 2 1 15 . . 1 . 5 20 . Fast Attach 52 | 7 . 1 2 9 2 1 . . . . . 1 3 . . 4 . 3 11 8 Attach 37 | . 1 . 3 4 2 5 . . 1 . . . 4 . 1 . . 7 3 6 Detach 12 | . . . . 1 . 1 . . . . . . . . . . . 2 5 3 Swap 125 | 1 9 5 2 43 2 7 2 6 1 2 . 4 14 2 1 2 . 3 15 4 Drop 181 | 1 15 2 4 50 13 7 5 6 3 7 1 1 24 . 1 3 . 5 31 2 Fire 721 | 12 15 19 18 78 16 35 2 16 77 24 5 16 65 11 6 7 18 106 114 61 Melee . | . . . . . . . . . . . . . . . . . . . . . Ram 6 | . . . . . . . . . . . . . . . . . . . . 6 Kick . | . . . . . . . . . . . . . . . . . . . . . Crush . | . . . . . . . . . . . . . . . . . . . . . Escape Stasis 8 | . . . . . . . . . . . . . 6 . . . . . . 2 Rewire 166 | . . 2 . . . . 1 . 163 . . . . . . . . . . . Trap . | . . . . . . . . . . . . . . . . . . . . . Miscellaneous . | . . . . . . . . . . . . . . . . . . . . . Route ------- -11/Scrapyard -10/Materials (discovered 5 exits: [*Mat x3] / [*Min] / *Sub) -10/Subcaves (discovered 2 exits: *Mat x2) -8/Materials -8/Storage (discovered 2 exits: [*Fac] / *Rec) -8/Recycling -6/Factory -6/Waste -6/Factory -6/Extension (discovered 2 exits: *Fac / *Cet) -6/Cetus (discovered 2 exits: *Fac / *Arc) -6/Archives (discovered 3 exits: *Fac / *Hub x2) -6/Hub_04(d) (discovered 2 exits: *Fac x2) -5/Factory (discovered 4 exits: *Fac x2 / *Upp x2) -5/Upper Caves -5/Upper Caves (discovered 2 exits: *Fac / *Zhi) -5/Zhirov -4/Proximity Caves -4/Factory (discovered 2 exits: *Res x2) -3/Research -3/Testing History --------- Turn | Location | Event 25 | -11/Scrapyard | Discovered new exit (range 15) 98 | -11/Scrapyard | Entered Materials 308 | -10/Materials | Discovered new exit (range 3) 322 | -10/Materials | Build established: Mutant 508 | -10/Materials | Discovered new exit (range 7) 703 | -10/Materials | Discovered new exit (range 15) 767 | -10/Materials | Central database locked down 837 | -10/Materials | Discovered new exit (range 16) 1312 | -10/Materials | Discovered new exit (range 5) 1340 | -10/Materials | Entered Subcaves 1652 | -10/Subcaves | Discovered new exit (range 9) 2053 | -10/Subcaves | Build established: Scavenger-Mutant 2215 | -10/Subcaves | Shifting Twisted Machinery released Battle Rifle 2218 | -10/Subcaves | Shifting Twisted Machinery released Sub. Machine Gun 2241 | -10/Subcaves | Discovered new exit (range 6) 2323 | -10/Subcaves | Entered Materials 2323 | -8/Materials | Evolved 4 slots: Propulsion x1, Utility x2, Weapon x1 2324 | -8/Materials | Identified exit to Storage 2508 | -8/Materials | Entered Storage 3269 | -8/Storage | Build established: Scavenger-Gunner 3432 | -8/Storage | Used back door to open Recycling access 3432 | -8/Storage | Discovered new exit (range 5) 3905 | -8/Storage | Garrison activated, responded to threat 3981 | -8/Storage | Lost 3 parts (1p2n) 4046 | -8/Storage | Discovered new exit (range 16) 4332 | -8/Storage | Entered Recycling 4713 | -8/Recycling | Entered Scraplab 4847 | -8/Recycling | Discovered new exit (range 15) 5167 | -8/Recycling | Found Prototype Device 5167 | -8/Recycling | Identified Scrap Engine 5460 | -8/Recycling | Build established: Mutant 6342 | -8/Recycling | Build established: Construct 6639 | -8/Recycling | Entered Factory 6639 | -6/Factory | Evolved 4 slots: Propulsion x1, Utility x3 6912 | -6/Factory | Fabricated Quantum Capacitor (x2) 7191 | -6/Factory | Discovered new exit (range 11) 7367 | -6/Factory | Identified exit to Lower Caves 7602 | -6/Factory | Sucked down chute 7602 | -6/Factory | Entered Waste 7603 | -6/Waste | Joined by Warlord forces that had cleared the area 7914 | -6/Waste | Discovered new exit (range 12) 7982 | -6/Waste | Entered Factory 7982 | -6/Factory | Accompanied by 20 allies 8049 | -6/Factory | Lost 5 allies 8314 | -6/Factory | Fabricated Phase Cannon (x2) 8323 | -6/Factory | Discovered new exit (range 16) 8332 | -6/Factory | First assault squad dispatched 8392 | -6/Factory | Entered Extension 8392 | -6/Extension | Accompanied by 12 allies 8415 | -6/Extension | Rescued a captive Derelict 8416 | -6/Extension | Rescued a captive Derelict 8573 | -6/Extension | Rescued a captive Derelict 8627 | -6/Extension | Rescued A7 8995 | -6/Extension | Spotted B-75 Beast 9005 | -6/Extension | Spotted B-75 Beast 9012 | -6/Extension | Allies destroyed B-75 Beast 9029 | -6/Extension | Allies destroyed B-75 Beast 9092 | -6/Extension | First assault squad dispatched 9092 | -6/Extension | Lost 7 allies 9368 | -6/Extension | Lost 3 allies 9370 | -6/Extension | Rescued a captive Derelict 9371 | -6/Extension | Rescued a captive Derelict 9442 | -6/Extension | Rescued a captive Derelict 9446 | -6/Extension | Rescued a captive Derelict 9452 | -6/Extension | Build established: Commander-Construct 9476 | -6/Extension | Rescued a captive Derelict 9551 | -6/Extension | Discovered new exit (range 10) 9552 | -6/Extension | Discovered new exit (range 6) 9649 | -6/Extension | Entered Cetus 9649 | -6/Cetus | Accompanied by 24 allies (A7) 9654 | -6/Cetus | Acquired a Cetus Manufacturing Module code from A7 9657 | -6/Cetus | Spotted Cetus Guard 9657 | -6/Cetus | Spotted Cetus Guard 9661 | -6/Cetus | Destroyed Cetus Guard 9662 | -6/Cetus | Spotted Cetus Guard 9667 | -6/Cetus | Spotted Cetus Guard 9668 | -6/Cetus | Allies destroyed Cetus Guard 9672 | -6/Cetus | Destroyed Cetus Guard 9678 | -6/Cetus | Allies destroyed Cetus Guard 9709 | -6/Cetus | Started Cetus Manufacturing Module 9734 | -6/Cetus | Manufactured an Enhanced Grunt 9759 | -6/Cetus | Manufactured an Enhanced Grunt 9784 | -6/Cetus | Manufactured an Enhanced Grunt 9809 | -6/Cetus | Manufactured an Enhanced Grunt 9834 | -6/Cetus | Manufactured an Enhanced Grunt 9866 | -6/Cetus | Escorted A7 to Cetus Mainframe 9874 | -6/Cetus | Discovered new exit (range 15) 9904 | -6/Cetus | Spotted Cetus Guard 9905 | -6/Cetus | Spotted Cetus Guard 9905 | -6/Cetus | Destroyed Cetus Guard 9906 | -6/Cetus | Spotted Cetus Guard 9914 | -6/Cetus | Spotted Cetus Guard 9916 | -6/Cetus | Allies destroyed Cetus Guard 9927 | -6/Cetus | Destroyed Cetus Guard 9927 | -6/Cetus | Allies destroyed Cetus Guard 9932 | -6/Cetus | Discovered new exit (range 15) 9936 | -6/Cetus | Met Revision 17 10247 | -6/Cetus | Entered Archives 10247 | -6/Archives | Accompanied by 23 allies (A7) 10252 | -6/Archives | Received a hacking code to weaken MAIN.C 10272 | -6/Archives | Unable to access archive contents 10280 | -6/Archives | Unable to access archive contents 10282 | -6/Archives | Discovered new exit (range 16) 10286 | -6/Archives | Unable to access archive contents 10287 | -6/Archives | Discovered new exit (range 15) 10294 | -6/Archives | Discovered new exit (range 16) 10302 | -6/Archives | Unable to access archive contents 10592 | -6/Archives | Entered Hub_04(d) 10592 | -6/Hub_04(d) | Accompanied by 21 allies 10649 | -6/Hub_04(d) | Discovered new exit (range 14) 10805 | -6/Hub_04(d) | Discovered new exit (range 6) 10873 | -6/Hub_04(d) | Entered Factory 10873 | -5/Factory | Accompanied by 15 allies 10873 | -5/Factory | Evolved 2 slots: Power x1, Utility x1 11224 | -5/Factory | Discovered new exit (range 6) 11231 | -5/Factory | Identified exit to Factory 11521 | -5/Factory | Lost 4 allies 11773 | -5/Factory | First assault squad dispatched 11970 | -5/Factory | Identified exit to Upper Caves 12006 | -5/Factory | Spotted B-75 Beast 12082 | -5/Factory | Discovered exit to Factory (range 5) 12085 | -5/Factory | Build established: Construct 12145 | -5/Factory | High security lockdown imminent 12225 | -5/Factory | High security lockdown engaged 12284 | -5/Factory | Entered Upper Caves 12339 | -5/Upper Caves | Encountered a Warlord checkpoint 12489 | -5/Upper Caves | Discovered new exit (range 10) 12498 | -5/Upper Caves | Entered another Upper Caves area 12500 | -5/Upper Caves | Discovered exit to Factory (range 7) 12537 | -5/Upper Caves | Learned Factory security intel 12696 | -5/Upper Caves | Discovered new exit (range 13) 12704 | -5/Upper Caves | Identified exit to Zhirov 12706 | -5/Upper Caves | Entered Zhirov 12706 | -5/Zhirov | Discovered new exit (range 3) 12716 | -5/Zhirov | Met Zhirov 12726 | -5/Zhirov | Learned location of Testing (-3) 12726 | -5/Zhirov | Learned location of Quarantine (-2) 12726 | -5/Zhirov | Learned location of Command (-1) 12735 | -5/Zhirov | Zhirov requested help retrieving the SGEMP Prototype 12745 | -5/Zhirov | Found Alien Artifact 12752 | -5/Zhirov | Found Alien Artifact 12752 | -5/Zhirov | Identified Integrated Reactor 12752 | -5/Zhirov | Installed Integrated Reactor, increased core energy generation (+10) 12850 | -5/Zhirov | Entered Proximity Caves 12983 | -4/Proximity Caves | Spotter reported a threat 13056 | -4/Proximity Caves | Discovered exit to Factory (range 8) 13060 | -4/Proximity Caves | Entered Factory 13060 | -4/Factory | Evolved 2 slots: Utility x2 13138 | -4/Factory | Discovered new exit (range 15) 13430 | -4/Factory | Build established: Scavenger-Construct 13471 | -4/Factory | Discovered new exit (range 5) 13684 | -4/Factory | Repaired Adv. Coolant Injector 13810 | -4/Factory | First assault squad dispatched 13991 | -4/Factory | Entered Research 13991 | -3/Research | Evolved 2 slots: Propulsion x2 14035 | -3/Research | Garrison activated, responded to threat 14086 | -3/Research | Destroyed 10 combat bots 14191 | -3/Research | Revision forces began assault on 0b10 14249 | -3/Research | Spotted B-86 Titan 14328 | -3/Research | Build established: Scavenger-Mutant 14641 | -3/Research | Build established: Scavenger-Construct 14691 | -3/Research | Research terminal network offline 14988 | -3/Research | Found Heavy Servo Lattice 15059 | -3/Research | Spotted Striker 15068 | -3/Research | Destroyed Striker 15153 | -3/Research | Discovered new exit (range 13) 15267 | -3/Research | Spotted Striker 15289 | -3/Research | Destroyed Striker 15333 | -3/Research | Lost 3 allies 15528 | -3/Research | Spotted Striker 15543 | -3/Research | Destroyed Striker 15578 | -3/Research | Entered Testing 15584 | -3/Testing | Lost 4 parts (1p1u2w) 15624 | -3/Testing | Build established: Scavenger-Mutant 15752 | -3/Testing | Spotted PX-HCXQGGHMNZ 15815 | -3/Testing | Identified Transdimensional Reconstructor 15815 | -3/Testing | Warped through subspace 15845 | -3/Testing | Lost 3 parts (2u1w) 15957 | -3/Testing | Crushed by falling debris 15970 | -3/Testing | Found Prototype Hackware 15970 | -3/Testing | Identified System Mapper 16070 | -3/Testing | Core integrity fell below 50% 16080 | -3/Testing | Lost 3 parts (1p1n1u) 16143 | -3/Testing | Found Prototype Device 16143 | -3/Testing | Identified Exp. ECM Suite 16234 | -3/Testing | System corruption reached 10% 16295 | -3/Testing | Garrison activated, responded to threat 16319 | -3/Testing | Lost 5 parts (1p1n3u) 16352 | -3/Testing | Core integrity fell below 20% 16375 | -3/Testing | Released all parts (3) 16376 | -3/Testing | Scanned by Researcher 16377 | -3/Testing | Destroyed by H-77 Assassin with High-powered Shotgun Last Messages --------------- 16371_ P-80 Master IFF system glitched. 16372_ Acquired 5 matter. 16373_ Cld. Phase Cannon destroyed. 16373_ Penetrated by Slug. 16374_ FQJPGCMLLHP=%/S&5 PZBSC|ESUN# 16374_ Penetrated by Slug. 16374_ P-80 Master destroyed. 16375_ Released Coolant Network. 16375_ Released Broken Adv. Weapon Cycler. 16375_ Released Adv. Cryofiber Web. 16376_ Slammed into K-01 Serf. 16376_ C-55 Analyst calls for reinforcements. 16376_ ALERT: Hostile activity reported, dispatching reinforcements to area. 16376_ Held in stasis. 16376_ C-55 Analyst is analyzing... 16376_ ALERT: Encountered unknown unique technology, formulating response. 16377_ Penetrated by Slug. [Achievement: Overachiever] Map ----- +----------------------------------------------------+ | """ # ##### ? ##???????????????????????? | | """ ### ####### ### ????????????????????? | | ### # # #####????????????????????? | | +######## + # ????????????????????? | | ##### # %] # ?????????????????????? | | ##?## # ! # ? ????????????????????? | | ##?## # # ? ????????????????????? | | ##### ####### """" "????????????????????? | | ##### ####### """" "????????????????????? | | ####" #### """" ""????###????????????? | | ##### #### """" """"??###????????????? | | ##### # "" ? ##????????????? | | ##?## #""" """" """" ##????????????? | | ##### #"T """" """" ##????????????? | | #####+##+#""" """" """" ##????????????? | | # # "" """" """" ###???????????? | | # """ ! #### ## ???????????? | | # """ + + ???????????? | | + """ ! ##########+## # ???????????? | | ? ? # """ ##### # c## # ???????????? | | ??? # """ ##?## "" "" # ## ?? / ??????????? | | ??? # """ ##?## ""R"" # ##????## ?????????? | | ????? """ ! ##?## """" # ##??????????????????? | | ????# ##?## # h######## ""???????? | | ????###########?##########!! ###%#########???????? | | ???? k @ h m!!!!* Y ??? | | ?????????? #########"#####?????????? | | ?????????? ### ###########?????????? | | ??????????? ## ###??????????????????? | | ???????????###########+#######???????????????????? | | ??????????????# ????????????????????? | | ?????????????????????????????????????????????????? | | ?????????????????????????????????????????????????? | | ?????????????????????????????????????????????????? | | ?????????????????????????????????????????????????? | | ?????????????????????????????????????????????????? | | ?????????????????????????????????????????????????? | | ?????????????????????????????????????????????????? | | ?????????????????????????????????????????????????? | | ?????????????????????????????????????????????????? | | | | | | | | | | | | | | | | | | | | | +----------------------------------------------------+ Best States ------------- Heat Dissipation 167 Coolant Potential 100 Energy Generation 71 Energy Capacity 893 Matter Stores 300 Matter Capacity 300 Sight Range 16 Terrain Scan Density 10 Jamming Range 14 Power Amplification 40 Base Temperature (-) 200 Armor Coverage 600 Power Shielding 90 Weapon Cycling 25 Evasion (%) 63 Targeting Accuracy 8 Recoil Reduction 4 Particle Charging 30 Offensive Hacking 20 Item Schematics ----------------- Hcp. Storage Unit | -10/Materials | Hacked Imp. Target Analyzer | -8/Storage | Hacked Phase Cannon | -8/Recycling | Hacked Imp. Medium Armor Plating | -8/Recycling | Hacked Adv. Cooling System | -5/Factory | Scanalyzed Assault Drone Bay | -5/Zhirov | Free Exp. Heat Sink | -5/Zhirov | Free Exp. Optical Array | -5/Zhirov | Free Imp. Arc Thrower | -5/Zhirov | Free Robot Schematics ------------------ A-15 Conveyor | -6/Extension | Hacked Fabricated ------------ Quantum Capacitor | x2 | -6/Factory | Preloaded Phase Cannon | x2 | -6/Factory Repaired ---------- Adv. Coolant Injector | 28% | -4/Factory Alien Tech Used ----------------- Integrated Reactor Transdimensional Reconstructor Achievements -------------- Main Advantage Overachiever Challenges ------------ None Game ------ Seed MobileDisruptorDriveblaster Manual? 0 Play Time 03:52:54 Cumulative 175.3 hours Start 2025.07.04 @ 15:29:23 End 2025.07.04 @ 21:40:16 Sessions 9 Manual Loads 0 Difficulty Rogue Special Mode None Game No. 123 Rogue 123 Adventurer 0 Explorer 0 Win Type - Total 2 Types 2/0/0/0/0/0/0/0/0/0 Lore% 60 Gallery% 56 Achievement% 50 Wizard Run 0 Options --------- Layout 1 ASCII 0 Keyboard 0 Movement Mouse Keybinds 0 Fullscreen 1 Font 32/SmallcapsGlow Map View 50x35 Zoom Use 0% Tactical HUD 1 Map Filters NONE Filters NONE Steam 1 RUN: bdb8ce1e-934c-4671-b487-df102419fac4